bitfinex/quotes_ETHUSD_20250403
["timestamp","ask_amount","ask_price","bid_price","bid_amount"]
[1743690539284,6.806,1775.5,1775.1,0.05]
[1743690539619,11.26592,1775.3,1775.1,0.05]
[1743690540326,5.63298,1775.3,1775.1,0.05]
[1743690540612,5.63265,1775.4,1775.1,0.05]
[1743690540851,5.63265,1775.4,1775.1,5.68344]
[1743690541053,12.43827,1775.5,1775.1,11.31672]
[1743690541348,12.43827,1775.5,1775.1,5.68333]
[1743690541508,5.63264,1775.4,1775.1,5.68333]
[1743690541702,12.43827,1775.5,1775.1,12.526698]
[1743690541903,12.43827,1775.5,1775.1,6.893338]
[1743690542136,5.63254,1775.4,1775.1,6.893338]
[1743690542842,6.806,1775.5,1775.1,0.05]
[1743690543146,5.63316,1775.2,1775.1,0.05]
[1743690543535,12.43824,1775.5,1775.1,0.05]
[1743690543845,5.63195,1775.6,1775.2,6.45214]
[1743690544051,6.805,1775.8,1775.2,0.819]
[1743690544219,5.63231,1775.5,1775.2,0.819]
[1743690544916,5.63231,1775.5,1775.2,6.45215]
[1743690545510,5.63231,1775.5,1775.2,0.819]
[1743690545846,11.2647,1775.5,1775.1,5.68323]
[1743690546042,9.804,1775.6,1775.4,0.777]
[1743690546612,5.63132,1775.8,1775.4,7.10675199]
[1743690546817,12.43375,1776.0,1775.6,5.63179]
[1743690547012,12.43375,1776.0,1775.4,1.417971]
[1743690547013,0.7939,1776.2,1775.5,6.40921]
[1743690547220,6.42298,1776.5,1776.1,5.63013]
[1743690547454,6.42298,1776.5,1776.0,5.63062]
[1743690547634,6.42298,1776.5,1776.0,1.126152]
[1743690547635,5.62936,1776.4,1776.0,1.126152]
[1743690547813,5.62967,1776.3,1776.0,1.126152]
[1743690548009,5.62936,1776.4,1776.0,1.126152]
[1743690548219,5.62972,1776.3,1776.0,1.126152]
[1743690548649,5.62936,1776.4,1776.0,6.756532]
[1743690548920,5.6297,1776.3,1775.9,5.63093]
[1743690549137,5.62936,1776.4,1776.0,5.63055]
[1743690549351,47.357,1776.6,1776.1,0.05629855]
[1743690549554,12.42944,1776.7,1776.3,5.62936]
[1743690549757,12.4288,1776.9,1776.3,0.640636]
[1743690549947,12.4288,1776.9,1776.5,5.62903]
[1743690550656,3.0,1776.8,1776.4,5.6291]
[1743690550824,5.62822,1776.8,1776.4,11.25824]
[1743690551228,5.62822,1776.8,1776.4,5.6291]
[1743690551538,5.62822,1776.8,1776.4,12.44043094]
[1743690551732,5.62822,1776.8,1776.4,12.384146]
[1743690551928,5.62721,1777.1,1776.4,12.384146]
[1743690551929,5.62727,1777.1,1776.7,5.62834]
[1743690552125,5.62727,1777.1,1776.6,5.62869]
[1743690552334,3.0,1777.2,1776.6,5.62872]
[1743690552645,5.62737,1777.1,1776.7,6.191272]
[1743690552846,5.62737,1777.1,1776.7,11.25662]
[1743690553047,5.62737,1777.1,1776.8,5.62809]
[1743690553260,5.6269,1777.2,1776.8,5.6843645]
[1743690553460,8.62668,1777.3,1776.8,5.6841545]
[1743690553632,3.0,1777.2,1776.9,5.62774]
[1743690553828,3.0,1777.2,1776.9,12.08828442]
[1743690554159,5.62668,1777.3,1776.9,6.40427]
[1743690554859,5.6262,1777.4,1776.9,6.40427]
[1743690555029,0.7748,1777.6,1777.0,0.05626883]
[1743690555231,5.62532,1777.7,1777.3,5.62645]
[1743690555232,18.04783,1777.7,1777.3,5.62645]
[1743690555658,5.62557,1777.6,1777.2,6.40647]
[1743690555864,12.42232,1777.7,1777.0,0.05626883]
[1743690555865,5.62663,1777.3,1777.0,0.8096]
[1743690556226,3.0,1777.5,1777.0,0.8096]
[1743690556569,5.62706,1777.2,1776.8,6.40486]
[1743690556931,5.62706,1777.2,1776.9,0.05627138]
[1743690557133,6.795,1777.2,1776.9,5.68399138]
[1743690557644,6.795,1777.2,1776.8,6.40477]
[1743690557645,12.42184,1777.2,1776.8,6.40477]
[1743690558029,5.62716,1777.1,1776.8,0.7769]
[1743690558242,12.42184,1777.2,1776.8,6.40495]
[1743690558439,12.42184,1777.2,1776.8,0.7769]
[1743690558628,5.62733,1777.1,1776.7,5.62821]
[1743690558843,5.62733,1777.1,1776.7,11.25645]
[1743690559044,12.42185,1777.2,1776.9,5.6277]
[1743690559338,6.795,1777.2,1776.9,6.50697205]
[1743690559537,6.794,1777.3,1777.0,5.62731]
[1743690559762,6.794,1777.3,1777.0,6.2779682]
[1743690559958,12.4202,1777.4,1777.0,6.2779682]
[1743690560161,12.4202,1777.4,1777.0,5.62746]
[1743690560467,12.4202,1777.4,1777.0,11.25472]
[1743690560665,12.4202,1777.4,1777.0,5.62726]
[1743690560963,6.794,1777.4,1777.1,5.62713]
[1743690561169,6.793,1777.5,1777.3,0.8156]
[1743690562267,5.62619,1777.4,1777.1,0.7558]
[1743690562969,6.793,1777.5,1777.2,5.68307544]
[1743690563158,6.793,1777.5,1777.3,5.62636]
[1743690563360,6.793,1777.5,1777.3,11.2527]
[1743690563548,9.792,1777.7,1777.4,5.62616]
[1743690563749,15.41725,1777.7,1777.4,5.62616]
[1743690564074,9.792,1777.7,1777.3,5.62634]
[1743690564238,3.0,1777.7,1777.4,5.68232659]
[1743690564570,3.0,1777.7,1777.3,1.125312]
[1743690564571,5.62572,1777.6,1777.3,1.125312]
[1743690564866,15.41627,1777.7,1777.1,7.583973]
[1743690564867,5.62589,1777.5,1777.1,7.583973]
[1743690565059,5.62591,1777.5,1777.1,1.956853]
[1743690565258,11.25198,1777.5,1777.1,7.6401533]
[1743690565764,11.252,1777.5,1777.1,7.6401533]
[1743690565971,5.62621,1777.4,1777.1,1.956853]
[1743690566171,5.62621,1777.4,1777.1,0.7558]
[1743690566947,5.62726,1777.1,1776.7,6.4193]
[1743690567152,5.62757,1777.0,1776.7,0.7909]
[1743690567479,5.62781,1776.9,1776.7,0.7909]
[1743690567975,5.62809,1776.8,1776.5,0.771]
[1743690568471,11.25643,1776.8,1776.5,0.771]
[1743690568634,5.62809,1776.8,1776.5,0.771]
[1743690569468,3.0,1777.0,1776.5,0.771]
[1743690569679,12.41486,1777.2,1776.8,5.62787]
[1743690569849,12.41486,1777.2,1776.8,11.818607]
[1743690570049,12.41486,1777.2,1776.9,5.62765]
[1743690570255,6.788,1777.2,1777.0,6.37985]
[1743690570457,8.62626,1777.4,1777.0,6.37985]
[1743690570671,14.25264,1777.4,1777.0,6.37985]
[1743690570873,5.62654,1777.3,1777.0,0.7525]
[1743690571073,5.62665,1777.3,1777.0,0.7525]
[1743690571280,14.25295,1777.4,1777.0,6.37984]
[1743690571576,6.787,1777.4,1777.1,11.25382]
[1743690571776,5.62683,1777.2,1777.0,0.7525]
[1743690572142,5.62683,1777.2,1776.8,5.62796]
[1743690572343,5.62725,1777.1,1776.8,11.25595]
[1743690572543,5.62683,1777.2,1776.9,5.62773]
[1743690572744,5.62655,1777.3,1776.9,5.62765]
[1743690572975,11.25215,1777.5,1777.1,6.42701]
[1743690573271,5.626,1777.5,1777.2,5.62663]
[1743690573474,11.25208,1777.5,1777.2,5.62663]
[1743690573671,11.25208,1777.5,1776.8,6.44669]
[1743690573672,6.39609,1777.4,1776.8,6.44669]
[1743690573871,5.62732,1777.1,1776.8,6.44669]
[1743690574078,5.62689,1777.2,1776.8,12.719349]
[1743690574273,5.62718,1777.1,1776.8,12.719299]
[1743690574498,5.6273,1777.1,1776.8,1.463369]
[1743690574779,5.6273,1777.1,1776.8,7.091439]
[1743690574948,11.2539,1777.2,1776.8,7.091309]
[1743690575140,5.62687,1777.2,1776.8,12.719289]
[1743690575340,0.7699,1777.4,1776.8,12.719289]
[1743690575341,9.86450341,1777.6,1776.8,7.091309]
[1743690575547,6.785,1777.7,1777.1,5.62702]
[1743690575740,5.62598,1777.5,1777.1,5.62702]
[1743690575979,5.62621,1777.4,1777.1,5.62702]
[1743690576274,5.62621,1777.4,1777.0,5.62745]
[1743690576275,6.04785626,1777.6,1776.8,0.8187]
[1743690576479,5.62671,1777.3,1776.9,5.62762]
[1743690576677,5.62623,1777.4,1777.0,6.190112]
[1743690576875,6.04785626,1777.6,1777.2,5.6266]
[1743690577043,5.62592,1777.5,1777.2,6.39]
[1743690578182,5.62528,1777.7,1777.4,5.62605]
[1743690578390,11.29938,1777.9,1777.5,5.62565]
[1743690578589,6.784,1777.8,1777.5,5.62565]
[1743690578758,18.0341,1777.8,1777.4,6.24499012]
[1743690578962,18.0341,1777.8,1777.5,5.62573]
[1743690578963,12.40894,1777.8,1777.5,5.62573]
[1743690579358,0.05,1777.9,1777.7,5.62496]
[1743690579577,0.05,1777.9,1777.7,6.45226]
[1743690582071,5.62523,1777.8,1777.4,6.38637]
[1743690582263,12.01526,1777.7,1777.3,5.62637]
[1743690582464,6.38979,1777.7,1777.3,5.62637]
[1743690582695,5.62568,1777.6,1777.2,5.62679]
[1743690582897,5.62568,1777.6,1777.2,11.25349]
[1743690583305,5.62628,1777.4,1777.1,6.41238]
[1743690583465,5.62628,1777.4,1777.1,6.4124]
[1743690583668,11.25278,1777.4,1777.0,6.190162]
[1743690583866,5.62628,1777.4,1777.0,11.87372014]
[1743690584066,5.62628,1777.4,1777.0,6.190052]
[1743690584067,5.62657,1777.3,1777.0,6.190052]
[1743690584315,5.62621,1777.4,1776.9,0.7853]
[1743690584613,3.0,1777.5,1776.9,6.41306]
[1743690584916,3.0,1777.5,1777.0,5.62741]
[1743690585119,3.0,1777.5,1776.9,0.7853]
[1743690585120,5.62619,1777.4,1776.9,0.7853]
[1743690585417,5.62792,1776.9,1776.6,6.45859]
[1743690586405,5.62691,1777.2,1776.7,0.05628233]
[1743690586569,5.62729,1777.1,1776.7,11.31273259]
[1743690586774,5.62729,1777.1,1776.8,5.62805]
[1743690587003,5.62691,1777.2,1776.9,5.6276]
[1743690587182,8.6262,1777.4,1776.9,0.05627291]
[1743690587492,8.6262,1777.4,1777.0,12.03149]
[1743690587693,6.44549,1777.6,1777.2,5.6266]
[1743690587894,5.62588,1777.5,1777.2,5.6266]
[1743690588189,5.62588,1777.5,1777.2,11.25327]
[1743690588392,5.62579,1777.6,1777.2,6.751971]
[1743690588564,5.62579,1777.6,1777.3,5.62636]
[1743690589190,11.25154,1777.6,1777.2,5.6266]
[1743690589391,5.62573,1777.6,1777.2,11.25329]
[1743690589787,5.62573,1777.6,1777.3,5.62642]
[1743690589975,18.0308,1777.7,1777.3,5.62642]
[1743690590187,12.4053,1777.7,1777.4,6.45695]
[1743690590387,0.05,1777.9,1777.7,5.6252]
[1743690590980,0.05,1777.9,1777.7,5.6251]
[1743690591185,5.62429,1778.0,1777.7,5.6251]
[1743690591368,5.62375,1778.2,1777.8,5.62464]
[1743690591682,5.62366,1778.2,1777.8,0.5680887]
[1743690591881,11.24751,1778.2,1777.8,5.62476]
[1743690592082,5.62398,1778.1,1777.8,5.62476]
[1743690592285,8.62343,1778.3,1777.6,5.6255]
[1743690592598,5.62455,1778.0,1777.6,5.6255]
[1743690592776,5.62421,1778.1,1777.8,0.8039]
[1743690592980,5.62421,1778.1,1777.8,1.44681]
[1743690593184,5.62415,1778.1,1777.8,1.44681]
[1743690593501,5.62415,1778.1,1777.8,0.8039]
[1743690594403,11.24833,1778.1,1777.8,0.8039]
[1743690594600,5.62462,1777.9,1777.5,6.39937]
[1743690594800,5.62495,1777.8,1777.5,6.39923]
[1743690595003,5.62436,1778.0,1777.6,5.62531]
[1743690595178,5.62372,1778.2,1777.8,0.7735]
[1743690595504,6.43815,1778.4,1778.0,11.24837]
[1743690595802,5.62325,1778.4,1778.1,5.62391]
[1743690595972,5.62323,1778.4,1778.0,5.62412]
[1743690596171,5.62323,1778.4,1778.1,5.62385]
[1743690597402,5.62323,1778.4,1778.1,6.748647]
[1743690597605,11.24568,1778.5,1778.1,6.748637]
[1743690597901,5.62272,1778.5,1778.1,6.748637]
[1743690598102,5.62245,1778.6,1778.2,5.62366]
[1743690598304,5.62297,1778.5,1778.2,0.7697]
[1743690598475,5.62314,1778.4,1778.2,0.7697]
[1743690598806,5.6232,1778.4,1778.1,5.62384]
[1743690599101,6.774,1778.6,1778.1,0.05623381]
[1743690599306,12.59486,1778.9,1778.4,0.7505]
[1743690599507,5.62252,1778.6,1778.3,5.62329]
[1743690599805,5.62252,1778.6,1778.3,5.6795675]
[1743690600006,5.62298,1778.5,1778.1,6.44146]
[1743690600208,5.6235,1778.3,1778.1,0.8175]
[1743690600409,6.45156,1778.4,1777.6,0.7811]
[1743690600595,11.2488,1778.0,1777.6,6.40649]
[1743690600801,11.2488,1778.0,1777.3,6.751809]
[1743690600802,5.62525,1777.7,1777.4,6.4071]
[1743690601212,5.62464,1777.9,1777.4,0.7811]
[1743690601424,5.62583,1777.6,1777.2,5.62682]
[1743690601712,5.62583,1777.6,1777.2,11.25353]
[1743690601917,5.62528,1777.7,1777.3,5.62651]
[1743690602077,3.8284,1778.0,1777.2,5.62682]
[1743690602283,3.8284,1778.0,1777.1,0.8308]
[1743690602284,5.6234,1778.3,1777.9,5.62447]
[1743690602485,18.79528,1778.4,1778.0,5.62416]
[1743690602781,5.62075,1779.2,1778.1,0.8073]
[1743690602782,6.44241,1778.9,1778.1,0.8073]
[1743690602980,5.67164,1778.9,1778.5,6.41085]
[1743690603222,5.67164,1778.9,1778.5,12.0334]
[1743690603422,5.67157,1778.9,1778.5,6.41075]
[1743690603586,0.05,1778.9,1778.5,6.41091]
[1743690603783,5.6716,1778.9,1778.5,7.614298]
[1743690604179,5.62223,1778.7,1778.5,0.7882]
[1743690604379,5.62181,1778.8,1778.5,0.7882]
[1743690604586,0.05,1778.9,1778.7,5.62194]
[1743690604783,5.67158,1778.9,1778.5,6.41081]
[1743690604986,5.62202,1778.8,1778.3,6.40603]
[1743690605515,5.62202,1778.8,1778.3,1.985767]
[1743690605834,5.67146,1778.9,1778.5,5.62267]
[1743690605991,5.67146,1778.9,1778.7,5.62197]
[1743690605992,0.05,1778.9,1778.7,5.62197]
[1743690606308,0.05,1778.9,1778.8,6.39126]
[1743690606718,1e-05,1778.9,1778.8,7.44991211]
[1743690607035,0.05,1779.9,1779.7,5.61889]
[1743690607206,0.05,1779.9,1779.8,6.49998789]
[1743690607604,0.05,1779.9,1779.8,6.4438]
[1743690607780,0.05,1779.9,1779.8,0.8252]
[1743690607984,5.66829,1779.9,1779.5,0.7872]
[1743690608459,3.8127,1779.8,1779.2,0.7872]
[1743690608623,5.61913,1779.7,1779.2,6.40754]
[1743690608949,5.61925,1779.6,1779.2,0.7872]
[1743690609101,5.61954,1779.6,1778.8,0.8315]
[1743690609302,11.23909,1779.6,1779.1,5.62066]
[1743690609499,5.61954,1779.6,1779.1,5.62058]
[1743690609710,3.0,1779.8,1779.3,0.782]
[1743690609910,5.61917,1779.7,1779.3,0.782]
[1743690610123,15.38462,1779.8,1779.3,6.40202]
[1743690610710,5.61902,1779.7,1779.3,6.40213]
[1743690610925,6.766,1779.8,1779.4,5.61964]
[1743690611117,6.766,1779.8,1779.5,0.561964]
[1743690611916,12.38461,1779.8,1779.5,0.05618945]
[1743690612121,12.38461,1779.8,1779.3,6.40205]
[1743690612320,6.766,1779.8,1779.4,0.05619232]
[1743690612720,6.766,1779.8,1779.6,5.61906]
[1743690612923,0.05,1779.9,1779.6,5.61906]
[1743690613139,5.66841,1779.9,1779.6,0.561906]
[1743690613353,5.66841,1779.9,1779.4,5.61968]
[1743690613553,5.66841,1779.9,1779.5,5.67559791]
[1743690613554,0.05,1779.9,1779.5,5.67559791]
[1743690613828,0.05,1779.9,1779.5,0.05618791]
[1743690614032,5.61898,1779.7,1779.3,0.782]
[1743690614221,5.61925,1779.6,1779.3,0.782]
[1743690614525,5.61925,1779.6,1778.0,0.7895]
[1743690614526,5.62157,1778.9,1778.0,0.7895]
[1743690614727,12.38557,1778.9,1778.4,5.62286]
[1743690614949,6.764,1778.9,1778.5,5.62243]
[1743690615113,7.5829,1778.9,1778.2,0.7895]
[1743690615443,5.6232,1778.4,1777.9,7.575739]
[1743690615642,12.3852,1778.4,1778.0,0.7575739]
[1743690615809,12.3852,1778.4,1778.0,6.3817239]
[1743690616331,6.762,1778.4,1778.2,5.62353]
[1743690616842,12.38383,1778.8,1778.3,5.62312]
[1743690617063,5.62297,1778.5,1778.1,5.62375]
[1743690617250,12.38378,1778.8,1778.3,5.62318]
[1743690617414,12.38378,1778.8,1778.4,5.62284]
[1743690617611,5.62105,1779.1,1778.5,0.05622337]
[1743690617830,5.62105,1779.1,1778.4,6.44031]
[1743690617831,6.762,1779.1,1778.4,6.44031]
[1743690618034,5.62145,1778.9,1778.4,0.8173]
[1743690618242,5.6222,1778.7,1778.3,5.62331]
[1743690618422,5.6222,1778.7,1778.2,5.62346]
[1743690618609,5.6222,1778.7,1778.3,5.62323]
[1743690618816,5.6222,1778.7,1778.2,5.62346]
[1743690619154,5.62294,1778.5,1778.1,6.82451739]
[1743690619348,5.62294,1778.5,1778.2,0.68245174]
[1743690619648,11.24594,1778.5,1778.1,1.20055739]
[1743690619814,5.62294,1778.5,1778.1,6.82448739]
[1743690620216,5.62294,1778.5,1778.0,6.44838]
[1743690620217,5.62304,1778.4,1778.0,0.8243]
[1743690620450,3.0,1778.4,1778.0,0.8243]
[1743690620750,5.62379,1778.2,1777.8,5.62475]
[1743690621113,5.62467,1777.9,1777.7,0.8176]
[1743690621311,5.62467,1777.9,1777.5,5.62581]
[1743690621555,11.24955,1777.9,1777.5,6.83059]
[1743690621748,5.62497,1777.8,1777.5,1.20478]
[1743690622068,5.62467,1777.9,1777.5,6.8306]
[1743690622246,11.24949,1777.9,1777.5,6.8306]
[1743690622554,11.25078,1777.7,1777.4,0.7958]
[1743690622743,5.62501,1777.8,1777.4,5.62606]
[1743690623141,6.43703,1777.9,1777.3,5.62647]
[1743690623142,5.62539,1777.7,1777.3,5.62647]
[1743690623457,5.62569,1777.6,1777.2,6.38471]
[1743690623630,5.62526,1777.7,1777.3,5.62648]
[1743690623831,5.62526,1777.7,1777.3,6.83322511]
[1743690624026,6.39,1778.2,1777.4,5.68244635]
[1743690624228,5.62444,1778.0,1777.5,5.62567]
[1743690624431,5.62518,1777.8,1777.3,6.83318511]
[1743690624763,5.62518,1777.8,1777.4,5.68231604]
[1743690624920,12.38655,1778.0,1777.6,5.62555]
[1743690625116,6.762,1778.0,1777.8,5.6249]
[1743690625458,5.62372,1778.2,1777.8,5.62489]
[1743690625754,6.762,1778.3,1777.9,5.62458]
[1743690625938,5.62368,1778.2,1777.8,5.6249]
[1743690626138,5.62403,1778.1,1777.8,0.63866]
[1743690626338,6.762,1778.3,1777.7,6.38674]
[1743690626539,5.62423,1778.1,1777.7,5.62504]
[1743690627041,5.62442,1778.0,1777.6,5.62555]
[1743690627243,13.19881,1778.4,1777.7,0.05624688]
[1743690627421,3.0,1778.3,1778.0,5.62424]
[1743690627622,8.62337,1778.3,1777.9,5.68068804]
[1743690627937,5.62337,1778.3,1778.0,5.62429]
[1743690628137,5.62412,1778.1,1777.6,6.4508]
[1743690628339,5.62451,1778.0,1777.6,6.4508]
[1743690628854,11.24905,1778.0,1777.6,6.4508]
[1743690629150,5.62451,1778.0,1777.6,12.07602]
[1743690629454,5.62398,1778.1,1777.7,5.62523]
[1743690629756,5.6243,1778.0,1777.6,6.45066]
[1743690630053,5.62542,1777.7,1777.3,6.41924]
[1743690630255,12.38665,1777.9,1777.3,0.7929]
[1743690630445,12.38665,1777.9,1777.1,5.67714]
[1743690630446,5.62598,1777.5,1777.1,5.67695]
[1743690630619,5.62636,1777.4,1777.1,0.05]
[1743690630819,11.25281,1777.4,1777.1,0.05]
[1743690631019,0.7897,1777.5,1777.1,5.67709]
[1743690631259,5.62528,1777.7,1777.2,6.51247626]
[1743690631457,12.38562,1777.9,1777.5,5.6256]
[1743690631624,8.62433,1778.0,1777.6,5.62525]
[1743690631824,5.6243,1778.0,1777.6,5.62552]
[1743690632072,5.6243,1778.0,1777.6,6.188072]
[1743690632355,6.38848,1778.1,1777.4,6.45548]
[1743690632532,5.6248,1777.9,1777.5,5.68202205]
[1743690632731,5.62434,1778.0,1777.7,5.62523]
[1743690632961,6.43433,1778.4,1777.8,0.05624957]
[1743690633276,5.62105,1779.1,1778.0,0.7854]
[1743690633575,6.44363,1779.2,1778.8,5.62153]
[1743690633772,0.8231,1779.2,1778.3,0.8151]
[1743690634069,11.24334,1778.9,1778.5,5.62269]
[1743690634270,5.62094,1779.1,1778.7,5.62178]
[1743690634485,12.38194,1779.1,1778.7,5.62178]
[1743690634764,5.62115,1779.0,1778.5,5.62248]
[1743690634957,5.62189,1778.8,1778.3,0.8151]
[1743690635160,5.62189,1778.8,1778.5,5.62268]
[1743690635479,5.62167,1778.9,1778.5,5.62268]
[1743690635629,11.24333,1778.9,1778.5,5.62268]
[1743690635825,12.38196,1779.1,1778.6,0.05622177]
[1743690636047,12.38196,1779.1,1778.6,5.6222]
[1743690636253,6.761,1779.1,1778.8,6.38655]
[1743690636465,6.761,1779.1,1778.8,0.7648]
[1743690636634,12.38212,1779.1,1778.7,6.18419]
[1743690636833,12.3821,1779.1,1778.7,0.56222]
[1743690637157,5.62175,1778.9,1778.5,6.4295]
[1743690637364,12.37971,1779.2,1778.7,5.62182]
[1743690637546,0.758,1779.5,1778.5,0.8069]
[1743690637547,5.62002,1779.4,1778.5,0.8069]
[1743690637739,5.62022,1779.3,1778.9,5.62132]
[1743690637934,5.62022,1779.3,1778.8,6.43875]
[1743690637935,5.6205,1779.2,1778.8,6.43875]
[1743690638153,1.124071,1779.2,1778.8,0.817]
[1743690638364,6.03992273,1779.3,1778.7,0.05621166]
[1743690638668,5.6212,1779.0,1778.5,6.39867]
[1743690638838,5.6212,1779.0,1778.6,5.62237]
[1743690639038,5.62101,1779.1,1778.7,5.62197]
[1743690639242,5.62101,1779.1,1778.6,5.62237]
[1743690639243,5.62124,1779.0,1778.6,5.62226]
[1743690639443,5.62124,1779.0,1778.5,0.7761]
[1743690639444,5.62146,1778.9,1778.5,6.39871]
[1743690639764,5.62089,1779.1,1778.7,5.62195]
[1743690639961,5.62089,1779.1,1778.7,11.24388]
[1743690640136,12.37861,1779.2,1778.8,5.6216]
[1743690640332,5.62084,1779.1,1778.7,5.62201]
[1743690640540,5.62182,1778.8,1778.5,0.7761]
[1743690640739,11.24388,1778.8,1778.4,5.62303]
[1743690640950,11.24388,1778.8,1778.3,6.43371]
[1743690640951,5.62211,1778.7,1778.3,6.43371]
[1743690641469,5.62273,1778.5,1778.0,6.40105]
[1743690641670,6.757,1778.7,1778.1,0.05623413]
[1743690641848,12.37926,1778.7,1778.3,5.62323]
[1743690642176,18.00157,1778.7,1778.3,5.62323]
[1743690642553,5.62287,1778.5,1778.1,5.62381]
[1743690642753,5.62287,1778.5,1778.1,11.24766]
[1743690643255,5.62308,1778.4,1778.0,0.7768]
[1743690643463,5.62361,1778.3,1777.9,5.62445]
[1743690643645,5.62357,1778.3,1777.8,6.39424]
[1743690643847,11.24645,1778.4,1778.0,5.62428]
[1743690644166,5.62313,1778.4,1778.0,11.24836]
[1743690644351,0.8038,1778.5,1777.8,7.033764]
[1743690644556,5.62482,1777.9,1777.6,0.4268752]
[1743690644758,5.62524,1777.7,1777.6,0.4268752]
[1743690645291,7.5423,1778.0,1777.6,0.4268752]
[1743690645292,5.62462,1777.9,1777.6,0.4268752]
[1743690645472,5.62407,1778.1,1777.7,5.6251]
[1743690645675,6.756,1778.2,1777.7,0.56251]
[1743690645986,6.756,1778.2,1777.5,0.8312]
[1743690645987,6.756,1778.2,1777.9,5.62459]
[1743690646134,12.37969,1778.2,1777.6,5.62528]
[1743690646341,5.62466,1777.9,1777.5,6.45698]
[1743690646581,5.62429,1778.0,1777.6,5.62536]
[1743690646747,5.62429,1778.0,1777.6,11.25079]
[1743690647125,11.24819,1778.1,1777.7,5.62522]
[1743690647284,5.62437,1778.0,1777.6,5.62538]
[1743690647486,12.3798,1778.2,1777.8,5.62492]
[1743690647666,5.62414,1778.1,1777.7,5.62522]
[1743690647971,5.6245,1778.0,1777.6,11.25086]
[1743690648173,5.62463,1777.9,1777.6,5.62541]
[1743690648545,3.0,1778.1,1777.5,6.45696]
[1743690648744,5.9243,1778.0,1777.5,0.8312]
[1743690648939,6.756,1778.2,1777.9,5.62432]
[1743690649175,12.37968,1778.2,1777.9,5.62432]
[1743690649381,18.00354,1778.2,1777.8,5.62488]
[1743690649543,12.37968,1778.2,1777.8,11.24969]
[1743690649740,6.756,1778.2,1777.9,5.6246]
[1743690649939,12.37978,1778.2,1777.9,1.124941]
[1743690650140,5.62464,1777.9,1777.5,6.45706]
[1743690650342,5.62517,1777.8,1777.5,0.8312]
[1743690650679,5.62517,1777.8,1777.5,6.45703]
[1743690651281,5.62469,1777.9,1777.5,6.45703]
[1743690651480,5.62455,1778.0,1777.6,5.62533]
[1743690651644,5.62392,1778.2,1777.8,5.62479]
[1743690651991,18.00283,1778.2,1777.8,5.62479]
[1743690652277,6.755,1778.2,1777.9,5.62454]
[1743690652787,6.755,1778.2,1778.0,5.62411]
[1743690652958,6.755,1778.2,1778.0,6.186521]
[1743690653157,7.27297569,1778.7,1778.2,5.62355]
[1743690653158,5.62257,1778.6,1778.2,5.62355]
[1743690653374,6.755,1778.6,1778.3,5.62307]
[1743690653577,6.755,1778.6,1778.4,5.62275]
[1743690653871,6.755,1778.6,1778.4,11.24566]
[1743690654072,7.5135,1779.0,1778.6,5.62226]
[1743690654376,13.13485,1779.0,1778.6,5.62226]
[1743690654595,13.13485,1779.0,1778.6,11.24453]
[1743690654972,0.7886,1779.2,1778.4,1.926866]
[1743690655213,17.99587,1779.3,1778.9,5.62133]
[1743690655361,5.62115,1779.0,1778.7,5.62197]
[1743690655569,5.62115,1779.0,1778.6,5.62223]
[1743690655867,5.62147,1778.9,1778.4,6.42528]
[1743690656093,5.62205,1778.8,1778.4,5.62285]
[1743690656293,6.37197,1778.9,1778.5,11.24524]
[1743690656493,8.62109,1779.1,1778.1,0.42150565]
[1743690656699,8.62118,1779.0,1778.6,6.40026]
[1743690657200,5.62145,1778.9,1778.6,6.40026]
[1743690658100,8.62118,1779.0,1778.6,12.02247]
[1743690658302,5.62118,1779.0,1778.6,6.40021]
[1743690658601,5.62084,1779.1,1778.6,0.778]
[1743690658770,6.753,1779.1,1778.8,5.62165]
[1743690658966,6.753,1779.1,1778.8,5.62164]
[1743690659172,5.62019,1779.3,1779.0,5.62113]
[1743690659479,13.1477,1779.4,1778.6,0.778]
[1743690659679,11.24073,1779.3,1778.9,5.6212]
[1743690659877,5.62052,1779.2,1778.8,5.62171]
[1743690660194,5.62084,1779.1,1778.8,5.62173]
[1743690660517,5.62054,1779.2,1778.8,5.62173]
[1743690660818,5.62082,1779.1,1778.7,5.62205]
[1743690660966,5.62103,1779.1,1778.7,5.6219]
[1743690661169,11.24206,1779.1,1778.7,5.6219]
[1743690661418,5.62103,1779.1,1778.7,5.6219]
[1743690661622,5.61978,1779.5,1778.8,0.05621503]
[1743690661767,0.7753,1779.6,1778.9,6.43521]
[1743690661967,13.14501,1779.8,1779.1,5.62062]
[1743690662222,5.61968,1779.5,1779.2,5.62049]
[1743690662519,5.61909,1779.7,1778.9,0.814]
[1743690662520,5.61992,1779.4,1779.0,5.6211]
[1743690662800,5.62143,1779.0,1778.6,8.62229]
[1743690663004,6.751,1779.2,1778.6,5.62229]
[1743690663201,5.62116,1779.0,1778.6,5.62233]
[1743690663402,7.1723952,1779.2,1778.3,6.41793]
[1743690663610,11.24392,1778.8,1778.4,5.62281]
[1743690663899,12.00882,1778.9,1778.5,5.62269]
[1743690664306,5.62178,1778.8,1778.5,5.62269]
[1743690664513,5.62178,1778.8,1778.0,7.222411]
[1743690664514,6.75,1778.7,1778.0,0.7947]
[1743690664715,0.64569462,1778.8,1778.0,0.7947]